[Event "Titled Tuesday Blitz May 4 2021"]
[White "Quirke, Jeffrey"]
[Black "Novikov, Evgenij"]
[WhiteFideId "2013029"]
[BlackFideId "4125380"]
[WhiteElo "2238"]
[BlackElo "2242"]
[Result "0-1"]
[Round "02"]
[TimeControl "180+1"]
[Date "2021.05.04"]
[WhiteClock "0:00:35"]
[BlackClock "0:01:02"]

1. d4 {[%clk 0:03:00]}  e6 {[%clk 0:02:59]} 2. c4 {[%clk 0:03:00]}  d5 {[%clk 0:02:58]} 3. Nc3 {[%clk 0:03:00]}  Nf6 {[%clk 0:02:58]} 4. cxd5 {[%clk 0:03:00]}  exd5 {[%clk 0:02:58]} 5. Bg5 {[%clk 0:03:00]}  c6 {[%clk 0:02:58]} 6. e3 {[%clk 0:03:01]}  Qb6 {[%clk 0:02:58]} 7. Qd2 {[%clk 0:02:49]}  Ne4 {[%clk 0:02:58]} 8. Nxe4 {[%clk 0:02:44]}  dxe4 {[%clk 0:02:59]} 9. Ne2 {[%clk 0:02:44]}  Bf5 {[%clk 0:02:52]} 10. Nc3 {[%clk 0:02:42]}  Bd6 {[%clk 0:02:50]} 11. Be2 {[%clk 0:02:39]}  O-O {[%clk 0:02:49]} 12. O-O {[%clk 0:02:38]}  Nd7 {[%clk 0:02:44]} 13. f3 {[%clk 0:02:22]}  exf3 {[%clk 0:02:39]} 14. Bxf3 {[%clk 0:02:15]}  Bg6 {[%clk 0:02:37]} 15. Kh1 {[%clk 0:02:10]}  Qc7 {[%clk 0:02:29]} 16. h3 {[%clk 0:02:07]}  f5 {[%clk 0:02:14]} 17. Bh4 {[%clk 0:01:50]}  Nf6 {[%clk 0:02:13]} 18. Rac1 {[%clk 0:01:43]}  Qd7 {[%clk 0:02:03]} 19. Rce1 {[%clk 0:01:12]}  Rae8 {[%clk 0:01:56]} 20. a3 {[%clk 0:01:11]}  Bc7 {[%clk 0:01:53]} 21. Qd1 {[%clk 0:01:03]}  Qd6 {[%clk 0:01:51]} 22. Kg1 {[%clk 0:00:55]}  Qh2+ {[%clk 0:01:30]} 23. Kf2 {[%clk 0:00:55]}  Ng4+ {[%clk 0:01:31]} 24. hxg4 {[%clk 0:00:50]}  Qxh4+ {[%clk 0:01:28]} 25. Ke2 {[%clk 0:00:43]}  fxg4 {[%clk 0:01:23]} 26. Qb3+ {[%clk 0:00:43]}  Bf7 {[%clk 0:01:21]} 27. Qxb7 {[%clk 0:00:42]}  gxf3+ {[%clk 0:01:18]} 28. gxf3 {[%clk 0:00:43]}  Bc4+ {[%clk 0:01:15]} 29. Kd2 {[%clk 0:00:40]}  Qh2+ {[%clk 0:01:09]} 30. Kc1 {[%clk 0:00:35]}  Bxf1 {[%clk 0:01:04]} 31. Rxf1 {[%clk 0:00:35]}  Rb8 {[%clk 0:01:02]} 0-1


[Site "https://www.chess.com"]

[Event "Titled Tuesday Blitz May 4 2021"]
[White "Rakotomaharo, Fy Antenaina"]
[Black "Kovacsy, Barnabas"]
[WhiteFideId "13100050"]
[BlackFideId "769290"]
[WhiteElo "2378"]
[BlackElo "1938"]
[Result "1-0"]
[Round "02"]
[TimeControl "180+1"]
[Date "2021.05.04"]
[WhiteClock "0:00:10"]
[BlackClock "0:00:01"]

1. e4 {[%clk 0:02:57]}  c5 {[%clk 0:02:59]} 2. Nf3 {[%clk 0:02:57]}  e6 {[%clk 0:03:00]} 3. g3 {[%clk 0:02:55]}  Nc6 {[%clk 0:02:56]} 4. Bg2 {[%clk 0:02:55]}  d5 {[%clk 0:02:56]} 5. exd5 {[%clk 0:02:54]}  exd5 {[%clk 0:02:57]} 6. d4 {[%clk 0:02:54]}  Bg4 {[%clk 0:02:57]} 7. O-O {[%clk 0:02:54]}  cxd4 {[%clk 0:02:57]} 8. h3 {[%clk 0:02:46]}  Bxf3 {[%clk 0:02:57]} 9. Qxf3 {[%clk 0:02:46]}  Nf6 {[%clk 0:02:57]} 10. Bg5 {[%clk 0:02:35]}  Be7 {[%clk 0:02:55]} 11. Bxf6 {[%clk 0:02:31]}  Bxf6 {[%clk 0:02:54]} 12. Re1+ {[%clk 0:02:32]}  Kf8 {[%clk 0:02:48]} 13. Nd2 {[%clk 0:02:25]}  g6 {[%clk 0:02:45]} 14. Nb3 {[%clk 0:02:09]}  Kg7 {[%clk 0:02:40]} 15. Qxd5 {[%clk 0:02:07]}  Qxd5 {[%clk 0:02:34]} 16. Bxd5 {[%clk 0:02:08]}  Rab8 {[%clk 0:02:02]} 17. Nc5 {[%clk 0:01:49]}  Nb4 {[%clk 0:01:55]} 18. Bb3 {[%clk 0:01:22]}  Rhd8 {[%clk 0:01:45]} 19. a3 {[%clk 0:01:10]}  Nc6 {[%clk 0:01:43]} 20. Rad1 {[%clk 0:01:06]}  b6 {[%clk 0:01:15]} 21. Nd3 {[%clk 0:01:00]}  Na5 {[%clk 0:01:11]} 22. Ba2 {[%clk 0:00:56]}  Rbc8 {[%clk 0:01:11]} 23. Re2 {[%clk 0:00:57]}  Rc7 {[%clk 0:01:04]} 24. Nb4 {[%clk 0:00:53]}  Rdc8 {[%clk 0:01:00]} 25. Rdd2 {[%clk 0:00:51]}  Nc4 {[%clk 0:00:55]} 26. Bxc4 {[%clk 0:00:48]}  Rxc4 {[%clk 0:00:56]} 27. f4 {[%clk 0:00:33]}  h5 {[%clk 0:00:51]} 28. Kg2 {[%clk 0:00:33]}  a5 {[%clk 0:00:37]} 29. Nd5 {[%clk 0:00:31]}  R4c5 {[%clk 0:00:31]} 30. Nxb6 {[%clk 0:00:25]}  R8c6 {[%clk 0:00:24]} 31. Na4 {[%clk 0:00:25]}  Rb5 {[%clk 0:00:17]} 32. b3 {[%clk 0:00:26]}  Rd5 {[%clk 0:00:18]} 33. Nb2 {[%clk 0:00:24]}  Rc3 {[%clk 0:00:05]} 34. a4 {[%clk 0:00:22]}  Bd8 {[%clk 0:00:02]} 35. Nd1 {[%clk 0:00:20]}  Rc6 {[%clk 0:00:02]} 36. Nf2 {[%clk 0:00:20]}  Bf6 {[%clk 0:00:02]} 37. Ne4 {[%clk 0:00:20]}  Be7 {[%clk 0:00:01]} 38. Rd3 {[%clk 0:00:20]}  Bf6 {[%clk 0:00:01]} 39. Nxf6 {[%clk 0:00:18]}  Kxf6 {[%clk 0:00:02]} 40. Red2 {[%clk 0:00:18]}  Ke6 {[%clk 0:00:03]} 41. Kf3 {[%clk 0:00:17]}  Rc3 {[%clk 0:00:02]} 42. Rxc3 {[%clk 0:00:16]}  dxc3 {[%clk 0:00:03]} 43. Rxd5 {[%clk 0:00:10]}  Kxd5 {[%clk 0:00:04]} 44. Ke3 {[%clk 0:00:11]}  f5 {[%clk 0:00:03]} 45. Kd3 {[%clk 0:00:10]}  h4 {[%clk 0:00:02]} 46. gxh4 {[%clk 0:00:10]}  g5 {[%clk 0:00:01]} 47. hxg5 {[%clk 0:00:10]} 1-0


[Site "https://www.chess.com"]

[Event "Titled Tuesday Blitz May 4 2021"]
[White "Rakshitta, Ravi"]
[Black "Taboas Rodriguez, Daniel"]
[WhiteFideId "25073230"]
[BlackFideId "2208466"]
[WhiteElo "1873"]
[BlackElo "2429"]
[Result "1-0"]
[Round "02"]
[TimeControl "180+1"]
[Date "2021.05.04"]
[WhiteClock "0:01:03"]
[BlackClock "0:01:29"]

1. e4 {[%clk 0:02:59]}  d5 {[%clk 0:02:59]} 2. exd5 {[%clk 0:02:57]}  Nf6 {[%clk 0:03:00]} 3. Nc3 {[%clk 0:02:57]}  Nxd5 {[%clk 0:03:00]} 4. d4 {[%clk 0:02:56]}  e6 {[%clk 0:02:58]} 5. Nf3 {[%clk 0:02:55]}  Be7 {[%clk 0:02:58]} 6. Be2 {[%clk 0:02:55]}  O-O {[%clk 0:02:58]} 7. O-O {[%clk 0:02:54]}  b6 {[%clk 0:02:59]} 8. Nxd5 {[%clk 0:02:51]}  exd5 {[%clk 0:02:58]} 9. Bf4 {[%clk 0:02:50]}  c5 {[%clk 0:02:58]} 10. Ne5 {[%clk 0:02:45]}  Bb7 {[%clk 0:02:57]} 11. Bg3 {[%clk 0:02:39]}  Nd7 {[%clk 0:02:56]} 12. Nxd7 {[%clk 0:02:37]}  Qxd7 {[%clk 0:02:57]} 13. Bf3 {[%clk 0:02:37]}  Rfd8 {[%clk 0:02:55]} 14. Re1 {[%clk 0:02:29]}  Bf6 {[%clk 0:02:52]} 15. c3 {[%clk 0:02:23]}  cxd4 {[%clk 0:02:50]} 16. cxd4 {[%clk 0:02:24]}  Rac8 {[%clk 0:02:49]} 17. Qd2 {[%clk 0:02:21]}  Rc4 {[%clk 0:02:43]} 18. Be5 {[%clk 0:02:19]}  Be7 {[%clk 0:02:03]} 19. b3 {[%clk 0:01:56]}  Bb4 {[%clk 0:01:57]} 20. Qg5 {[%clk 0:01:46]}  f6 {[%clk 0:01:56]} 21. Bxf6 {[%clk 0:01:37]}  Bxe1 {[%clk 0:01:56]} 22. Rxe1 {[%clk 0:01:18]}  Rf8 {[%clk 0:01:29]} 23. Re7 {[%clk 0:01:03]} 1-0


[Site "https://www.chess.com"]

[Event "Titled Tuesday Blitz May 4 2021"]
[White "Ranindu2003"]
[Black "Almeida Junior, Alvaro Alves de"]
[BlackFideId "2149974"]
[WhiteElo "2600"]
[BlackElo "2097"]
[Result "0-1"]
[Round "02"]
[TimeControl "180+1"]
[Date "2021.05.04"]
[WhiteClock "0:00:03"]
[BlackClock "0:00:09"]

1. e4 {[%clk 0:03:00]}  c5 {[%clk 0:03:00]} 2. Nf3 {[%clk 0:03:00]}  d6 {[%clk 0:03:00]} 3. d4 {[%clk 0:03:01]}  cxd4 {[%clk 0:03:01]} 4. Nxd4 {[%clk 0:03:02]}  Nf6 {[%clk 0:03:01]} 5. Nc3 {[%clk 0:03:03]}  a6 {[%clk 0:03:02]} 6. h3 {[%clk 0:03:03]}  e5 {[%clk 0:03:02]} 7. Nb3 {[%clk 0:03:04]}  h5 {[%clk 0:03:01]} 8. Bg5 {[%clk 0:02:59]}  Be7 {[%clk 0:03:01]} 9. f4 {[%clk 0:02:57]}  exf4 {[%clk 0:02:28]} 10. Bxf4 {[%clk 0:02:58]}  Nc6 {[%clk 0:02:29]} 11. Qd2 {[%clk 0:02:53]}  Be6 {[%clk 0:02:27]} 12. O-O-O {[%clk 0:02:52]}  Ne5 {[%clk 0:02:28]} 13. Nd4 {[%clk 0:02:51]}  Qa5 {[%clk 0:02:15]} 14. Kb1 {[%clk 0:02:45]}  Rc8 {[%clk 0:02:04]} 15. Nb3 {[%clk 0:02:39]}  Qc7 {[%clk 0:02:02]} 16. Bd3 {[%clk 0:02:28]}  b5 {[%clk 0:01:56]} 17. Rhe1 {[%clk 0:02:16]}  O-O {[%clk 0:01:41]} 18. Nd4 {[%clk 0:01:49]}  b4 {[%clk 0:01:22]} 19. Nce2 {[%clk 0:01:22]}  a5 {[%clk 0:01:03]} 20. Nc1 {[%clk 0:01:16]}  Nc4 {[%clk 0:00:49]} 21. Bxc4 {[%clk 0:01:12]}  Qxc4 {[%clk 0:00:50]} 22. Nxe6 {[%clk 0:01:03]}  fxe6 {[%clk 0:00:51]} 23. Qd3 {[%clk 0:00:53]}  Qc6 {[%clk 0:00:24]} 24. Nb3 {[%clk 0:00:45]}  e5 {[%clk 0:00:19]} 25. Bg5 {[%clk 0:00:42]}  a4 {[%clk 0:00:20]} 26. Nd2 {[%clk 0:00:42]}  Rfd8 {[%clk 0:00:16]} 27. Nf3 {[%clk 0:00:40]}  b3 {[%clk 0:00:14]} 28. cxb3 {[%clk 0:00:35]}  axb3 {[%clk 0:00:15]} 29. Qxb3+ {[%clk 0:00:36]}  Qc4 {[%clk 0:00:11]} 30. Qxc4+ {[%clk 0:00:26]}  Rxc4 {[%clk 0:00:12]} 31. Bxf6 {[%clk 0:00:26]}  Bxf6 {[%clk 0:00:12]} 32. b3 {[%clk 0:00:26]}  Rc3 {[%clk 0:00:10]} 33. Kb2 {[%clk 0:00:23]}  Rdc8 {[%clk 0:00:10]} 34. Rc1 {[%clk 0:00:24]}  R3c7 {[%clk 0:00:07]} 35. Rxc7 {[%clk 0:00:23]}  Rxc7 {[%clk 0:00:08]} 36. Rc1 {[%clk 0:00:23]}  Rb7 {[%clk 0:00:09]} 37. Rc6 {[%clk 0:00:23]}  Rb4 {[%clk 0:00:08]} 38. Nd2 {[%clk 0:00:20]}  Rd4 {[%clk 0:00:08]} 39. Nc4 {[%clk 0:00:20]}  Rxe4 {[%clk 0:00:08]} 40. Nxd6 {[%clk 0:00:18]}  Re2+ {[%clk 0:00:08]} 41. Kc1 {[%clk 0:00:14]}  Rxa2 {[%clk 0:00:07]} 42. g4 {[%clk 0:00:10]}  hxg4 {[%clk 0:00:07]} 43. hxg4 {[%clk 0:00:11]}  Rg2 {[%clk 0:00:08]} 44. Rc4 {[%clk 0:00:12]}  Kh7 {[%clk 0:00:06]} 45. Ne4 {[%clk 0:00:11]}  Be7 {[%clk 0:00:05]} 46. Nc3 {[%clk 0:00:09]}  Ba3+ {[%clk 0:00:05]} 47. Kd1 {[%clk 0:00:09]}  Rb2 {[%clk 0:00:05]} 48. Nb5 {[%clk 0:00:06]}  Rxb3 {[%clk 0:00:05]} 49. Nc7 {[%clk 0:00:06]}  Rd3+ {[%clk 0:00:04]} 50. Ke2 {[%clk 0:00:06]}  Rg3 {[%clk 0:00:03]} 51. Nd5 {[%clk 0:00:05]}  Rg2+ {[%clk 0:00:03]} 52. Kf3 {[%clk 0:00:05]}  Rh2 {[%clk 0:00:04]} 53. Ke4 {[%clk 0:00:05]}  Re2+ {[%clk 0:00:04]} 54. Kf5 {[%clk 0:00:06]}  Bb2 {[%clk 0:00:04]} 55. g5 {[%clk 0:00:06]}  Bd4 {[%clk 0:00:05]} 56. g6+ {[%clk 0:00:05]}  Kh6 {[%clk 0:00:05]} 57. Ne7 {[%clk 0:00:06]}  Rf2+ {[%clk 0:00:05]} 58. Ke6 {[%clk 0:00:06]}  Rf6+ {[%clk 0:00:05]} 59. Kd7 {[%clk 0:00:05]}  Kh5 {[%clk 0:00:05]} 60. Rc8 {[%clk 0:00:04]}  Kg5 {[%clk 0:00:05]} 61. Rg8 {[%clk 0:00:04]}  e4 {[%clk 0:00:05]} 62. Rxg7 {[%clk 0:00:02]}  Ra6 {[%clk 0:00:05]} 63. Rg8 {[%clk 0:00:02]}  Ra7+ {[%clk 0:00:06]} 64. Ke8 {[%clk 0:00:03]}  e3 {[%clk 0:00:06]} 65. g7 {[%clk 0:00:02]}  e2 {[%clk 0:00:07]} 66. Rf8 {[%clk 0:00:03]}  Rxe7+ {[%clk 0:00:06]} 67. Kxe7 {[%clk 0:00:03]}  e1=Q+ {[%clk 0:00:07]} 68. Kf7 {[%clk 0:00:02]}  Bxg7 {[%clk 0:00:08]} 69. Kxg7 {[%clk 0:00:02]}  Qe5+ {[%clk 0:00:08]} 70. Kg8 {[%clk 0:00:02]}  Qe6+ {[%clk 0:00:08]} 71. Rf7 {[%clk 0:00:03]}  Kg6 {[%clk 0:00:09]} 72. Kh8 {[%clk 0:00:03]}  Kxf7 {[%clk 0:00:09]} 0-1


[Site "https://www.chess.com"]

[Event "Titled Tuesday Blitz May 4 2021"]
[White "Ravi, Thandalam Shanmugam"]
[Black "Kovacs, Klara"]
[WhiteFideId "5000238"]
[BlackFideId "733210"]
[WhiteElo "2215"]
[BlackElo "2120"]
[Result "1-0"]
[Round "02"]
[TimeControl "180+1"]
[Date "2021.05.04"]
[WhiteClock "0:00:22"]
[BlackClock "0:00:05"]

1. e4 {[%clk 0:03:00]}  e6 {[%clk 0:02:56]} 2. d4 {[%clk 0:03:00]}  d5 {[%clk 0:02:56]} 3. Nd2 {[%clk 0:03:00]}  Be7 {[%clk 0:02:51]} 4. Ngf3 {[%clk 0:02:58]}  Nf6 {[%clk 0:02:46]} 5. Bd3 {[%clk 0:02:53]}  c5 {[%clk 0:02:47]} 6. dxc5 {[%clk 0:02:51]}  a5 {[%clk 0:02:43]} 7. Qe2 {[%clk 0:02:43]}  O-O {[%clk 0:02:43]} 8. O-O {[%clk 0:02:41]}  Na6 {[%clk 0:02:38]} 9. e5 {[%clk 0:02:29]}  Nd7 {[%clk 0:02:38]} 10. c3 {[%clk 0:02:29]}  Naxc5 {[%clk 0:02:34]} 11. Bc2 {[%clk 0:02:28]}  b6 {[%clk 0:02:35]} 12. Nd4 {[%clk 0:02:26]}  Ba6 {[%clk 0:02:34]} 13. c4 {[%clk 0:02:12]}  Rc8 {[%clk 0:02:33]} 14. b3 {[%clk 0:02:03]}  Qc7 {[%clk 0:02:28]} 15. f4 {[%clk 0:01:57]}  dxc4 {[%clk 0:02:25]} 16. Nxc4 {[%clk 0:01:51]}  b5 {[%clk 0:02:24]} 17. Ne3 {[%clk 0:01:42]}  b4 {[%clk 0:02:25]} 18. Nc4 {[%clk 0:01:37]}  a4 {[%clk 0:02:24]} 19. Qh5 {[%clk 0:01:32]}  g6 {[%clk 0:02:22]} 20. Qh6 {[%clk 0:01:32]}  Rfd8 {[%clk 0:02:15]} 21. Rf3 {[%clk 0:01:32]}  Bf8 {[%clk 0:02:00]} 22. Qh4 {[%clk 0:01:31]}  Bg7 {[%clk 0:01:58]} 23. Rh3 {[%clk 0:01:23]}  Nf8 {[%clk 0:01:58]} 24. Be3 {[%clk 0:01:11]}  Nb7 {[%clk 0:01:26]} 25. Re1 {[%clk 0:00:50]}  Bxc4 {[%clk 0:01:17]} 26. bxc4 {[%clk 0:00:49]}  Qxc4 {[%clk 0:01:18]} 27. Be4 {[%clk 0:00:47]}  Nc5 {[%clk 0:01:05]} 28. Rc1 {[%clk 0:00:46]}  Qxa2 {[%clk 0:01:04]} 29. Rxc5 {[%clk 0:00:39]}  Rxc5 {[%clk 0:01:03]} 30. Qxd8 {[%clk 0:00:39]}  b3 {[%clk 0:00:49]} 31. Nxb3 {[%clk 0:00:36]}  Rc3 {[%clk 0:00:25]} 32. Nc5 {[%clk 0:00:32]}  Qa1+ {[%clk 0:00:20]} 33. Kf2 {[%clk 0:00:31]}  Qb2+ {[%clk 0:00:19]} 34. Kf3 {[%clk 0:00:30]}  Qa3 {[%clk 0:00:15]} 35. Qd4 {[%clk 0:00:30]}  h5 {[%clk 0:00:09]} 36. Bc6 {[%clk 0:00:25]}  Qb2 {[%clk 0:00:08]} 37. Nxa4 {[%clk 0:00:23]}  Rxe3+ {[%clk 0:00:05]} 38. Qxe3 {[%clk 0:00:23]}  Qc1 {[%clk 0:00:05]} 39. Qxc1 {[%clk 0:00:22]} 1-0


[Site "https://www.chess.com"]

[Event "Titled Tuesday Blitz May 4 2021"]
[White "Real De Azua, Ernesto"]
[Black "Sarkar, Justin"]
[WhiteFideId "108154"]
[BlackFideId "2010011"]
[WhiteElo "2476"]
[BlackElo "2140"]
[Result "1-0"]
[Round "02"]
[TimeControl "180+1"]
[Date "2021.05.04"]
[WhiteClock "0:01:12"]
[BlackClock "0:00:01"]

1. e4 {[%clk 0:03:00]}  e5 {[%clk 0:02:56]} 2. Nf3 {[%clk 0:02:58]}  Nc6 {[%clk 0:02:55]} 3. Bc4 {[%clk 0:02:58]}  Nf6 {[%clk 0:02:54]} 4. d3 {[%clk 0:02:57]}  Be7 {[%clk 0:02:42]} 5. O-O {[%clk 0:02:55]}  O-O {[%clk 0:02:42]} 6. a4 {[%clk 0:02:55]}  d6 {[%clk 0:02:36]} 7. a5 {[%clk 0:02:54]}  a6 {[%clk 0:02:24]} 8. Re1 {[%clk 0:02:51]}  Be6 {[%clk 0:02:17]} 9. Nbd2 {[%clk 0:02:50]}  Qd7 {[%clk 0:02:08]} 10. c3 {[%clk 0:02:50]}  Rfe8 {[%clk 0:01:08]} 11. Qb3 {[%clk 0:02:29]}  Rab8 {[%clk 0:01:02]} 12. Bxe6 {[%clk 0:02:28]}  fxe6 {[%clk 0:00:55]} 13. Nf1 {[%clk 0:02:18]}  Nd8 {[%clk 0:00:43]} 14. Ng3 {[%clk 0:02:16]}  Nf7 {[%clk 0:00:40]} 15. d4 {[%clk 0:01:57]}  Bf8 {[%clk 0:00:14]} 16. Bg5 {[%clk 0:01:52]}  Nxg5 {[%clk 0:00:07]} 17. Nxg5 {[%clk 0:01:52]}  h6 {[%clk 0:00:07]} 18. Nf3 {[%clk 0:01:52]}  exd4 {[%clk 0:00:06]} 19. cxd4 {[%clk 0:01:53]}  d5 {[%clk 0:00:05]} 20. Ne5 {[%clk 0:01:42]}  Qb5 {[%clk 0:00:05]} 21. Qc2 {[%clk 0:01:42]}  dxe4 {[%clk 0:00:04]} 22. Qxc7 {[%clk 0:01:36]}  Rbc8 {[%clk 0:00:01]} 23. Qf7+ {[%clk 0:01:36]}  Kh7 {[%clk 0:00:01]} 24. Qg6+ {[%clk 0:01:16]}  Kg8 {[%clk 0:00:01]} 25. Nxe4 {[%clk 0:01:12]} 1-0


[Site "https://www.chess.com"]

[Event "Titled Tuesday Blitz May 4 2021"]
[White "Remizov, Yaroslav"]
[Black "Remolar Gallen, Jose"]
[WhiteFideId "34134015"]
[BlackFideId "2215187"]
[WhiteElo "2367"]
[BlackElo "2203"]
[Result "0-1"]
[Round "02"]
[TimeControl "180+1"]
[Date "2021.05.04"]
[WhiteClock "0:00:17"]
[BlackClock "0:00:08"]

1. Nf3 {[%clk 0:03:00]}  Nf6 {[%clk 0:02:58]} 2. c4 {[%clk 0:03:01]}  g6 {[%clk 0:02:58]} 3. g3 {[%clk 0:03:01]}  Bg7 {[%clk 0:02:58]} 4. Bg2 {[%clk 0:03:01]}  O-O {[%clk 0:02:58]} 5. O-O {[%clk 0:03:02]}  d6 {[%clk 0:02:59]} 6. b3 {[%clk 0:03:02]}  Ne4 {[%clk 0:02:53]} 7. d4 {[%clk 0:03:01]}  a5 {[%clk 0:02:49]} 8. Bb2 {[%clk 0:02:57]}  a4 {[%clk 0:02:47]} 9. Qc2 {[%clk 0:02:56]}  Bf5 {[%clk 0:02:15]} 10. Nh4 {[%clk 0:02:56]}  axb3 {[%clk 0:02:16]} 11. axb3 {[%clk 0:02:54]}  Rxa1 {[%clk 0:02:17]} 12. Bxa1 {[%clk 0:02:55]}  Nxg3 {[%clk 0:02:09]} 13. e4 {[%clk 0:02:55]}  Nxf1 {[%clk 0:02:08]} 14. exf5 {[%clk 0:02:54]}  e6 {[%clk 0:01:58]} 15. Nf3 {[%clk 0:02:54]}  Nxh2 {[%clk 0:01:55]} 16. Nxh2 {[%clk 0:02:53]}  exf5 {[%clk 0:01:54]} 17. Nd2 {[%clk 0:02:53]}  Nc6 {[%clk 0:01:53]} 18. Nhf3 {[%clk 0:02:51]}  Re8 {[%clk 0:01:47]} 19. Bc3 {[%clk 0:02:50]}  Qf6 {[%clk 0:01:41]} 20. b4 {[%clk 0:02:47]}  g5 {[%clk 0:01:23]} 21. b5 {[%clk 0:02:44]}  g4 {[%clk 0:01:22]} 22. bxc6 {[%clk 0:02:40]}  gxf3 {[%clk 0:01:22]} 23. Bxf3 {[%clk 0:02:37]}  bxc6 {[%clk 0:01:07]} 24. Bxc6 {[%clk 0:02:36]}  Qg5+ {[%clk 0:00:59]} 25. Bg2 {[%clk 0:02:35]}  Re6 {[%clk 0:00:26]} 26. Nf3 {[%clk 0:02:34]}  Qg4 {[%clk 0:00:24]} 27. Qd3 {[%clk 0:02:16]}  Rg6 {[%clk 0:00:23]} 28. Ne1 {[%clk 0:02:15]}  h5 {[%clk 0:00:17]} 29. Kf1 {[%clk 0:02:14]}  h4 {[%clk 0:00:15]} 30. d5 {[%clk 0:01:55]}  h3 {[%clk 0:00:11]} 31. Bxh3 {[%clk 0:01:51]}  Qg1+ {[%clk 0:00:10]} 32. Ke2 {[%clk 0:01:51]}  Bxc3 {[%clk 0:00:07]} 33. Qxc3 {[%clk 0:01:51]}  f4 {[%clk 0:00:06]} 34. Bf5 {[%clk 0:01:45]}  Rg5 {[%clk 0:00:06]} 35. Be4 {[%clk 0:01:42]}  Re5 {[%clk 0:00:05]} 36. Kf3 {[%clk 0:01:09]}  f5 {[%clk 0:00:04]} 37. Bxf5 {[%clk 0:01:01]}  Rxf5 {[%clk 0:00:04]} 38. Ng2 {[%clk 0:00:58]}  Rg5 {[%clk 0:00:04]} 39. Nxf4 {[%clk 0:00:36]}  Qg4+ {[%clk 0:00:04]} 40. Ke4 {[%clk 0:00:32]}  Re5+ {[%clk 0:00:05]} 41. Qxe5 {[%clk 0:00:32]}  dxe5 {[%clk 0:00:05]} 42. Kxe5 {[%clk 0:00:33]}  Qf3 {[%clk 0:00:04]} 43. Ne6 {[%clk 0:00:27]}  Qxf2 {[%clk 0:00:04]} 44. c5 {[%clk 0:00:23]}  Qg3+ {[%clk 0:00:04]} 45. Kf6 {[%clk 0:00:22]}  Qf3+ {[%clk 0:00:01]} 46. Ke5 {[%clk 0:00:22]}  Qc3+ {[%clk 0:00:01]} 47. Kf5 {[%clk 0:00:20]}  Qd3+ {[%clk 0:00:01]} 48. Ke5 {[%clk 0:00:20]}  Kf7 {[%clk 0:00:02]} 49. Nxc7 {[%clk 0:00:19]}  Qg3+ {[%clk 0:00:02]} 50. Kd4 {[%clk 0:00:19]}  Qxc7 {[%clk 0:00:03]} 51. c6 {[%clk 0:00:18]}  Qd6 {[%clk 0:00:01]} 52. Kc4 {[%clk 0:00:18]}  Ke7 {[%clk 0:00:02]} 53. Kd4 {[%clk 0:00:18]}  Kd8 {[%clk 0:00:03]} 54. Kc4 {[%clk 0:00:19]}  Kc7 {[%clk 0:00:04]} 55. Kd4 {[%clk 0:00:19]}  Qb4+ {[%clk 0:00:04]} 56. Ke5 {[%clk 0:00:19]}  Qd6+ {[%clk 0:00:05]} 57. Kd4 {[%clk 0:00:20]}  Qg3 {[%clk 0:00:05]} 58. Kc5 {[%clk 0:00:20]}  Qf2+ {[%clk 0:00:06]} 59. Kc4 {[%clk 0:00:20]}  Kd6 {[%clk 0:00:06]} 60. Kb5 {[%clk 0:00:19]}  Qc5+ {[%clk 0:00:07]} 61. Ka6 {[%clk 0:00:18]}  Qxd5 {[%clk 0:00:07]} 62. Kb7 {[%clk 0:00:15]}  Qxc6+ {[%clk 0:00:07]} 63. Ka7 {[%clk 0:00:16]}  Qb5 {[%clk 0:00:08]} 64. Ka8 {[%clk 0:00:17]}  Kc7 {[%clk 0:00:08]} 0-1


[Site "https://www.chess.com"]

[Event "Titled Tuesday Blitz May 4 2021"]
[White "Rodin, Mihail"]
[Black "Shipov, Sergei"]
[WhiteFideId "4113160"]
[BlackFideId "4113624"]
[WhiteElo "2368"]
[BlackElo "2725"]
[Result "1-0"]
[Round "02"]
[TimeControl "180+1"]
[Date "2021.05.04"]
[WhiteClock "0:00:21"]
[BlackClock "0:00:04"]

1. e4 {[%clk 0:03:00]}  e6 {[%clk 0:02:58]} 2. d4 {[%clk 0:03:00]}  d5 {[%clk 0:02:59]} 3. Nd2 {[%clk 0:03:01]}  Be7 {[%clk 0:02:59]} 4. Ngf3 {[%clk 0:03:00]}  Nf6 {[%clk 0:02:58]} 5. Bd3 {[%clk 0:03:00]}  c5 {[%clk 0:02:58]} 6. c3 {[%clk 0:03:01]}  cxd4 {[%clk 0:02:57]} 7. cxd4 {[%clk 0:03:02]}  dxe4 {[%clk 0:02:57]} 8. Nxe4 {[%clk 0:03:03]}  Bd7 {[%clk 0:02:57]} 9. Ne5 {[%clk 0:03:00]}  Bc6 {[%clk 0:02:56]} 10. Nxc6 {[%clk 0:02:54]}  Nxc6 {[%clk 0:02:56]} 11. Be3 {[%clk 0:02:53]}  Qa5+ {[%clk 0:02:50]} 12. Nc3 {[%clk 0:02:51]}  Rd8 {[%clk 0:02:49]} 13. O-O {[%clk 0:02:49]}  O-O {[%clk 0:02:49]} 14. Rc1 {[%clk 0:02:45]}  Qb4 {[%clk 0:02:43]} 15. Ne2 {[%clk 0:02:42]}  Qxb2 {[%clk 0:02:38]} 16. Rb1 {[%clk 0:02:41]}  Qxa2 {[%clk 0:02:37]} 17. Rxb7 {[%clk 0:02:41]}  Rb8 {[%clk 0:02:34]} 18. Bb1 {[%clk 0:02:32]}  Qa6 {[%clk 0:02:29]} 19. Rxb8 {[%clk 0:02:13]}  Rxb8 {[%clk 0:02:29]} 20. Nc3 {[%clk 0:02:12]}  Rd8 {[%clk 0:02:24]} 21. Re1 {[%clk 0:01:54]}  g6 {[%clk 0:02:20]} 22. Ne4 {[%clk 0:01:48]}  Qc4 {[%clk 0:02:08]} 23. Bd3 {[%clk 0:01:40]}  Qb4 {[%clk 0:02:08]} 24. Qa1 {[%clk 0:01:28]}  Nxd4 {[%clk 0:02:04]} 25. Rb1 {[%clk 0:01:25]}  Nb3 {[%clk 0:00:31]} 26. Nxf6+ {[%clk 0:01:22]}  Bxf6 {[%clk 0:00:31]} 27. Qxf6 {[%clk 0:01:21]}  Rxd3 {[%clk 0:00:31]} 28. h4 {[%clk 0:01:01]}  a5 {[%clk 0:00:28]} 29. Bh6 {[%clk 0:00:50]}  Qc3 {[%clk 0:00:28]} 30. Qf4 {[%clk 0:00:45]}  Qc8 {[%clk 0:00:13]} 31. Rxb3 {[%clk 0:00:35]}  Rxb3 {[%clk 0:00:12]} 32. Qf6 {[%clk 0:00:35]}  Rb1+ {[%clk 0:00:08]} 33. Kh2 {[%clk 0:00:35]}  Qb8+ {[%clk 0:00:08]} 34. g3 {[%clk 0:00:32]}  Qf8 {[%clk 0:00:07]} 35. Bxf8 {[%clk 0:00:31]}  Kxf8 {[%clk 0:00:08]} 36. Qd8+ {[%clk 0:00:31]}  Kg7 {[%clk 0:00:07]} 37. Qxa5 {[%clk 0:00:32]}  Rd1 {[%clk 0:00:06]} 38. Qe5+ {[%clk 0:00:32]}  Kg8 {[%clk 0:00:06]} 39. g4 {[%clk 0:00:33]}  Rd5 {[%clk 0:00:06]} 40. Qf6 {[%clk 0:00:31]}  h5 {[%clk 0:00:06]} 41. f3 {[%clk 0:00:29]}  Rb5 {[%clk 0:00:06]} 42. Kg3 {[%clk 0:00:29]}  Rd5 {[%clk 0:00:05]} 43. Kf4 {[%clk 0:00:29]}  Rb5 {[%clk 0:00:05]} 44. Qd8+ {[%clk 0:00:28]}  Kg7 {[%clk 0:00:05]} 45. Qd7 {[%clk 0:00:29]}  Rd5 {[%clk 0:00:04]} 46. Qc7 {[%clk 0:00:27]}  Rb5 {[%clk 0:00:04]} 47. Ke4 {[%clk 0:00:28]}  Rd5 {[%clk 0:00:04]} 48. Qb8 {[%clk 0:00:27]}  Ra5 {[%clk 0:00:01]} 49. g5 {[%clk 0:00:24]}  Rf5 {[%clk 0:00:01]} 50. Qd8 {[%clk 0:00:24]}  Kh7 {[%clk 0:00:01]} 51. f4 {[%clk 0:00:24]}  Rd5 {[%clk 0:00:01]} 52. Qe7 {[%clk 0:00:23]}  Rf5 {[%clk 0:00:01]} 53. Qd7 {[%clk 0:00:23]}  Kg7 {[%clk 0:00:01]} 54. Qd6 {[%clk 0:00:23]}  Kg8 {[%clk 0:00:01]} 55. Kd4 {[%clk 0:00:22]}  Kg7 {[%clk 0:00:02]} 56. Ke4 {[%clk 0:00:21]}  Kg8 {[%clk 0:00:03]} 57. Qe7 {[%clk 0:00:22]}  Kg7 {[%clk 0:00:04]} 58. Qd8 {[%clk 0:00:22]}  Rd5 {[%clk 0:00:03]} 59. Qxd5 {[%clk 0:00:21]}  Kg8 {[%clk 0:00:04]} 60. Qd8+ {[%clk 0:00:21]} 1-0


[Site "https://www.chess.com"]